bitfinex/quotes_ETHUSD_20241013
["timestamp","ask_amount","ask_price","bid_price","bid_amount"]
[1728854627691,4.05039,2468.9,2468.6,0.09520197]
[1728854628322,4.0501,2469.1,2468.6,0.09520197]
[1728854628614,4.05036,2469.0,2468.6,0.09520197]
[1728854629413,4.05044,2468.9,2468.6,0.09520197]
[1728854630005,8.10073,2469.0,2468.6,0.09520197]
[1728854630317,8.10067,2469.0,2468.6,0.09520197]
[1728854630890,8.10062,2469.0,2468.6,0.09520197]
[1728854631201,4.05031,2469.0,2468.6,0.09520197]
[1728854631804,4.04959,2469.4,2468.6,0.09520197]
[1728854632012,4.05066,2468.8,2468.6,0.09520197]
[1728854632318,4.05071,2468.7,2468.6,0.09520197]
[1728854632615,4.05066,2468.8,2468.2,0.7846]
[1728854632616,4.05088,2468.6,2468.2,0.7846]
[1728854633021,4.05088,2468.6,2468.3,0.09227573]
[1728854633381,4.05066,2468.8,2468.2,0.7846]
[1728854633382,4.05072,2468.7,2468.2,0.7846]
[1728854633615,4.05072,2468.7,2468.4,0.09227573]
[1728854633817,4.05072,2468.7,2468.2,0.7846]
[1728854634027,4.05072,2468.7,2468.5,0.09227573]
[1728854634189,4.05072,2468.7,2468.2,0.7846]
[1728854634385,4.05072,2468.7,2468.6,0.09227573]
[1728854634925,4.05072,2468.7,2468.2,0.7846]
[1728854635089,4.05088,2468.6,2468.2,0.7846]
[1728854637134,4.05185,2468.1,2467.5,0.7764]
[1728854637289,4.05189,2468.0,2467.5,0.7764]
[1728854638487,4.05189,2468.0,2467.6,0.55]
[1728854639437,8.10385,2468.0,2467.6,0.55]
[1728854639739,4.05189,2468.0,2467.6,0.55]
[1728854640543,4.86929555,2468.0,2467.6,0.55]
[1728854640835,0.07052553,2468.1,2467.6,0.55]
[1728854641708,4.12224553,2468.1,2467.6,0.55]
[1728854641908,4.05193,2468.0,2467.6,0.55]
[1728854642332,4.12224553,2468.1,2467.6,0.55]
[1728854642506,8.17402553,2468.1,2467.6,0.55]
[1728854642706,4.12224553,2468.1,2467.6,0.55]
[1728854643825,0.07052553,2468.1,2467.6,1.793188]
[1728854644033,0.07052553,2468.1,2467.6,5.92663726]
[1728854644212,4.05122,2468.4,2467.8,0.55]
[1728854644545,4.121734,2468.4,2467.8,0.63103301]
[1728854644765,4.121734,2468.4,2467.8,1.62891911]
[1728854645036,4.121734,2468.4,2467.4,3.0]
[1728854645037,4.05165,2468.2,2467.5,4.60266]
[1728854645237,4.05165,2468.2,2467.5,0.55]
[1728854645238,4.05164,2468.2,2467.5,0.55]
[1728854645443,4.05172,2468.1,2467.5,0.55]
[1728854645619,4.05172,2468.1,2467.5,1.393455]
[1728854646022,4.0519,2468.0,2467.5,0.55]
[1728854646503,4.05172,2468.1,2467.5,0.55]
[1728854647514,4.05186,2468.0,2467.5,0.55]
[1728854647846,4.0517,2468.1,2467.5,0.55]
[1728854648021,4.0517,2468.1,2467.6,0.08154584]
[1728854650201,4.05202,2468.0,2467.6,0.08154584]
[1728854650448,8.10399,2468.0,2467.6,0.08154584]
[1728854650619,4.05203,2467.9,2467.6,0.08154584]
[1728854651221,4.05197,2468.0,2467.6,0.08154584]
[1728854654553,4.05165,2468.2,2467.7,0.8164]
[1728854655056,8.17382149,2468.2,2467.8,0.08209097]
[1728854655265,4.61221789,2468.2,2467.8,0.08209097]
[1728854655423,4.05186,2468.0,2467.5,0.55]
[1728854655622,4.05186,2468.0,2467.9,0.08209097]
[1728854655856,4.05186,2468.0,2467.5,0.55]
[1728854656033,8.5933864,2468.2,2467.9,0.08204332]
[1728854656439,4.0517,2468.1,2467.7,0.8164]
[1728854657166,4.0517,2468.1,2467.8,0.08204332]
[1728854657689,4.0517,2468.1,2467.7,0.8164]
[1728854657866,4.0517,2468.1,2467.9,0.08204332]
[1728854658025,4.0517,2468.1,2467.7,0.8164]
[1728854658225,4.0517,2468.1,2468.0,0.08204332]
[1728854658463,4.0517,2468.1,2467.7,0.8164]
[1728854658968,4.0517,2468.1,2467.8,0.08204332]
[1728854659471,4.0517,2468.1,2467.7,0.8164]
[1728854659639,4.0517,2468.1,2467.9,0.08204332]
[1728854659962,4.0517,2468.1,2468.0,0.08204332]
[1728854660462,4.0517,2468.1,2467.7,0.8164]
[1728854660662,4.0517,2468.1,2468.0,0.08202795]
[1728854661165,4.0517,2468.1,2467.7,0.8164]
[1728854661368,4.0517,2468.1,2468.0,0.08202795]
[1728854661573,4.0517,2468.1,2467.7,0.8164]
[1728854661745,4.0517,2468.1,2468.0,0.08202795]
[1728854661947,4.0517,2468.1,2467.7,0.8164]
[1728854662134,4.0517,2468.1,2467.8,0.08202795]
[1728854662463,4.0517,2468.1,2467.7,0.8164]
[1728854662686,4.0517,2468.1,2467.9,0.08202795]
[1728854662974,4.0517,2468.1,2468.0,0.08202795]
[1728854663478,4.0517,2468.1,2467.7,0.8164]
[1728854663655,4.0517,2468.1,2468.0,0.08202795]
[1728854663839,4.98886964,2468.1,2467.7,0.8164]
[1728854664037,4.0517,2468.1,2468.0,0.08202795]
[1728854664234,4.05191,2468.0,2467.7,0.8164]
[1728854664776,4.0517,2468.1,2467.7,0.8164]
[1728854668181,8.10349,2468.1,2467.7,0.8164]
[1728854668678,4.0517,2468.1,2467.7,0.8164]
[1728854669400,8.10352,2468.1,2467.7,0.8164]
[1728854670999,4.0517,2468.1,2467.7,0.8164]
[1728854671800,4.0517,2468.1,2467.7,1.06581301]
[1728854671970,8.10348,2468.1,2467.7,1.06581301]
[1728854673475,4.0517,2468.1,2467.7,1.06581301]
[1728854674618,8.10349,2468.1,2467.7,1.06581301]
[1728854675885,4.0517,2468.1,2467.7,1.06581301]
[1728854676271,4.0517,2468.1,2467.8,0.1268966]
[1728854676487,4.0517,2468.1,2467.7,1.06581301]
[1728854676809,4.0517,2468.1,2467.8,0.12689677]
[1728854677104,8.10349,2468.1,2467.7,1.06581301]
[1728854677407,8.10349,2468.1,2467.8,0.12689564]
[1728854677567,8.10349,2468.1,2467.7,1.06581301]
[1728854677768,4.0517,2468.1,2467.8,0.126895]
[1728854677969,4.0517,2468.1,2467.9,0.08204332]
[1728854678507,4.0517,2468.1,2468.0,0.07937544]
[1728854678979,4.0517,2468.1,2468.0,0.07939094]
[1728854679179,4.0517,2468.1,2467.7,0.8164]
[1728854679381,4.0517,2468.1,2467.8,0.90602544]
[1728854679608,4.0517,2468.1,2467.8,0.07939094]
[1728854679903,4.0517,2468.1,2467.7,0.8164]
[1728854680072,4.0517,2468.1,2467.8,1.12886219]
[1728854680275,4.0517,2468.1,2467.9,0.1268961]
[1728854680469,4.0517,2468.1,2467.8,0.07939094]
[1728854680670,4.0517,2468.1,2467.9,0.12689561]
[1728854680897,0.07051238,2468.2,2468.0,0.8278]
[1728854681203,0.07051238,2468.2,2468.1,0.69971943]
[1728854681401,4.05106,2468.5,2468.1,2.60612795]
[1728854681607,4.12149155,2468.6,2468.2,0.69971943]
[1728854681807,4.12149155,2468.6,2468.1,0.73001343]
[1728854681808,4.05099,2468.6,2468.1,1.57598706]
[1728854682004,4.05099,2468.6,2468.2,1.74934401]
[1728854682227,4.05099,2468.6,2468.2,0.07936026]
[1728854682403,4.05099,2468.6,2468.3,0.70001328]
[1728854682571,4.05099,2468.6,2468.3,0.8114]
[1728854682979,4.05099,2468.6,2468.4,0.07936026]
[1728854684709,4.0508,2468.7,2468.4,0.07936026]
[1728854690219,0.12,2468.9,2468.7,0.7679]
[1728854690540,0.12,2469.2,2468.8,5.66760771]
[1728854690747,0.12,2469.2,2468.9,4.86676]
[1728854690901,0.12,2469.2,2468.9,0.89739664]
[1728854691230,0.12,2469.2,2469.0,0.07868554]
[1728854691802,0.12,2469.2,2469.1,0.88119718]
[1728854692143,0.12,2469.5,2469.1,5.55961847]
[1728854692496,0.12,2469.5,2469.2,4.04987]
[1728854692696,0.12,2469.5,2469.2,4.13085845]
[1728854692936,0.12,2469.5,2469.2,0.08098845]
[1728854693234,0.12,2469.5,2469.3,0.07814907]
[1728854693734,0.12,2469.5,2469.2,0.08098845]
[1728854693917,0.12,2469.5,2469.4,0.07814141]
[1728854694418,0.12,2469.5,2469.2,0.08098845]
[1728854694612,0.12,2469.5,2469.4,0.07814141]
[1728854694814,0.12,2469.5,2469.3,0.0780265]
[1728854695008,0.12,2469.5,2469.2,5.14959889]
[1728854695256,0.12,2469.5,2469.4,0.0780265]
[1728854695531,0.12,2469.5,2469.2,1.01874044]
[1728854695720,0.12,2469.5,2469.4,0.0780265]
[1728854696340,0.12,2469.5,2469.2,5.14960903]
[1728854696632,0.12,2469.5,2469.3,1.0549769]
[1728854696837,0.12,2469.5,2469.3,1.1330034]
[1728854698139,0.12,2469.6,2469.3,5.1827034]
[1728854698928,0.12,2469.6,2469.4,4.81685]
[1728854699132,0.12,2469.6,2469.4,4.81682]
[1728854699331,0.12,2469.6,2469.5,5.59935234]
[1728854699495,0.12,2469.8,2469.5,5.20629497]
[1728854699702,0.12,2469.8,2469.5,5.12531842]
[1728854700200,0.12,2469.9,2469.6,4.88935653]
[1728854700536,0.12,2470.0,2469.8,4.0489]
[1728854700743,0.12,2470.0,2469.9,4.12462188]
[1728854700955,0.12,2470.0,2469.9,1.44828188]
[1728854701244,0.12,2470.2,2469.9,5.49702188]
[1728854701399,0.12,2470.2,2470.0,0.95458419]
[1728854701836,0.12,2470.2,2470.1,0.07588188]
[1728854702046,4.16825,2470.2,2470.1,0.07588188]
[1728854702508,4.93465,2470.2,2470.1,0.07588188]
[1728854703017,4.93465,2470.2,2469.8,0.55]
[1728854703212,4.93465,2470.2,2470.1,0.07588188]
[1728854703410,4.93465,2470.2,2469.9,0.49710275]
[1728854703647,4.93465,2470.2,2470.0,0.07588188]
[1728854703803,0.12,2470.2,2470.0,0.15685003]
[1728854704006,0.12,2470.2,2470.1,0.7922]
[1728854704242,0.12,2470.2,2469.9,5.33798275]
[1728854704429,0.12,2470.2,2470.1,0.07588188]
[1728854704742,0.12,2470.2,2470.0,0.66975989]
[1728854704904,0.12,2470.2,2470.1,0.07588188]
[1728854705108,5.66104948,2470.2,2470.1,0.07588188]
[1728854705403,5.66104948,2470.2,2469.6,0.7778]
[1728854705404,4.04872,2470.0,2469.6,0.7778]
[1728854705610,4.04875,2469.9,2469.7,0.0755222]
[1728854706808,4.04844,2470.1,2469.7,0.0755222]
[1728854706809,4.04867,2470.0,2469.7,0.0755222]
[1728854709231,4.04844,2470.1,2469.7,0.0755222]
[1728854709433,8.09701,2470.1,2469.7,0.0755222]
[1728854710372,0.12,2470.2,2469.8,1.3277]
[1728854710694,0.12,2470.2,2470.0,0.55]
[1728854710851,0.12,2470.2,2470.1,0.47524205]
[1728854711182,4.048,2470.4,2470.1,0.5480282]
[1728854711183,0.12,2470.3,2470.1,0.5480282]
[1728854711853,4.16809,2470.3,2470.1,0.5480282]
[1728854712056,8.31202861,2470.2,2470.1,0.07278615]
[1728854712364,8.31202861,2470.2,2469.3,0.7777]
[1728854712365,8.10434333,2470.2,2469.3,0.7777]
[1728854712574,4.04918,2469.7,2469.4,0.06481811]
[1728854712948,4.04931,2469.6,2469.3,0.7777]
[1728854713293,8.09837,2469.7,2469.4,0.06481811]
[1728854713955,4.04926,2469.6,2469.4,0.06481811]
[1728854714687,4.0494,2469.5,2469.4,0.06481811]
[1728854714980,4.0494,2469.5,2469.0,0.7777]
[1728854715187,4.0494,2469.5,2469.1,0.06481811]
[1728854715475,4.04957,2469.4,2469.1,0.06481811]
[1728854715680,4.04979,2469.3,2469.1,0.06481811]
[1728854715981,4.85347,2469.4,2469.1,0.06481811]
[1728854716344,8.90313,2469.4,2469.1,0.06481811]
[1728854716657,4.04974,2469.3,2469.1,0.06481811]
[1728854716858,4.85347,2469.4,2469.1,0.06481811]
[1728854717376,4.04979,2469.3,2469.1,0.06481811]
[1728854717586,4.0499,2469.2,2468.9,0.55]
[1728854717757,4.0499,2469.2,2469.0,0.0626575]
[1728854717962,4.0499,2469.2,2468.8,0.7777]
[1728854718153,4.0499,2469.2,2468.9,0.06310085]
[1728854718351,4.05008,2469.1,2468.9,0.06310085]
[1728854718749,8.09994,2469.2,2468.9,0.06310085]
[1728854718984,4.0499,2469.2,2468.9,0.06310085]
[1728854719184,8.09993,2469.2,2468.9,0.06310085]
[1728854719594,4.0499,2469.2,2468.9,0.06310085]
[1728854719889,8.0999,2469.2,2468.9,0.06310085]
[1728854720390,4.0499,2469.2,2468.9,0.06310085]
[1728854721190,8.09988,2469.2,2468.9,0.06310085]
[1728854721390,8.09987,2469.2,2468.9,0.06310085]
[1728854721817,4.0499,2469.2,2468.9,0.06310085]
[1728854721949,0.8039,2469.4,2468.9,0.06310085]
[1728854722299,4.05022,2469.0,2468.6,0.8043]
[1728854722593,8.10055,2469.0,2468.6,0.8043]
[1728854722759,4.82322,2469.0,2468.6,0.8043]
[1728854722955,4.82322,2469.0,2468.7,0.06370478]
[1728854726893,0.773,2469.0,2468.7,0.06370478]
[1728854729772,4.82324,2469.0,2468.7,0.06370478]
[1728854731606,0.773,2469.0,2468.7,0.06370478]
[1728854731781,4.05007,2469.1,2468.7,0.06370478]
[1728854732936,4.17001,2469.2,2468.7,0.55560726]
[1728854733908,4.16999,2469.2,2468.7,0.55560726]
[1728854734130,0.07048952,2469.1,2468.7,0.55560726]
[1728854734277,4.16999,2469.2,2468.7,0.55560726]
[1728854734995,8.21998,2469.2,2468.7,0.55560726]
[1728854735602,4.05015,2469.1,2468.7,0.55560726]
[1728854735807,4.16999,2469.2,2468.7,0.55560726]
[1728854736116,8.21998,2469.2,2468.7,0.55560726]
[1728854736623,4.16999,2469.2,2468.8,0.7919]
[1728854736849,8.21996,2469.2,2468.8,0.7919]
[1728854737296,4.16997,2469.2,2468.8,0.7919]
[1728854737501,8.21995,2469.2,2468.8,0.7919]
[1728854737938,5.66141097,2469.2,2468.8,0.7919]
[1728854738299,4.1699,2469.2,2468.9,0.06373535]
[1728854741534,5.66134097,2469.2,2468.9,0.06373535]
[1728854744943,0.12,2469.2,2469.0,0.55]
[1728854745419,4.16973,2469.3,2469.1,0.06392651]
[1728854745815,0.12,2469.3,2469.1,0.06392651]
[1728854746059,0.12,2469.3,2469.1,0.87042651]
[1728854746515,4.16974,2469.3,2469.1,0.87042651]
[1728854749122,0.12,2469.3,2469.1,0.87042651]
[1728854752661,4.16975,2469.3,2469.1,0.87042651]
[1728854760396,4.04989,2469.2,2469.1,0.87042651]
[1728854761849,4.04989,2469.2,2469.1,0.06392651]
[1728854762351,4.04989,2469.2,2469.1,0.76294627]
[1728854763889,4.04989,2469.2,2469.1,0.06392651]
[1728854764085,4.04989,2469.2,2469.1,0.76294263]
[1728854764298,5.8043981,2469.2,2469.1,0.06392651]
[1728854764659,4.0502,2469.1,2468.9,0.55]
[1728854764853,5.54164097,2469.1,2469.0,0.76063352]
[1728854765087,5.54164097,2469.1,2469.0,0.76063245]
[1728854766768,5.54164097,2469.1,2469.0,0.06150508]
[1728854767572,5.54164097,2469.1,2468.7,2.66027498]
[1728854767573,5.54164097,2469.1,2468.7,0.8412676]
[1728854767800,4.05028,2469.0,2468.8,2.35951086]
[1728854768099,5.54172097,2469.0,2468.9,0.69907433]
[1728854768587,5.54172097,2469.0,2468.7,0.8412676]
[1728854768788,5.54172097,2469.0,2468.9,0.06150508]
[1728854769192,5.54172097,2469.0,2468.7,0.8412676]
[1728854769396,5.54172097,2469.0,2468.8,1.80880424]
[1728854769594,5.54172097,2469.0,2468.8,0.06150508]
[1728854769766,5.54172097,2469.0,2468.9,0.698919]
[1728854770091,5.54172097,2469.0,2468.7,0.8412676]
[1728854770295,5.54172097,2469.0,2468.9,0.06150508]
[1728854770537,5.54172097,2469.0,2468.7,0.8412676]
[1728854770703,5.54172097,2469.0,2468.9,0.06150508]
[1728854770870,5.54172097,2469.0,2468.9,0.69890353]
[1728854771075,5.54172097,2469.0,2468.9,0.76040861]
[1728854771968,5.54172097,2469.0,2468.9,0.06150508]
[1728854772291,5.54172097,2469.0,2468.7,0.8412676]
[1728854772471,5.54172097,2469.0,2468.9,0.06150508]
[1728854772677,5.54172097,2469.0,2468.7,0.8412676]
[1728854772871,5.54172097,2469.0,2468.9,0.06150508]
[1728854773073,5.54172097,2469.0,2468.7,0.8412676]
[1728854773281,5.54172097,2469.0,2468.9,0.06150508]
[1728854773489,5.54172097,2469.0,2468.9,0.6989432]
[1728854773785,5.54172097,2469.0,2468.9,0.76073883]
[1728854774106,5.54172097,2469.0,2468.9,0.06179563]
[1728854774468,5.54172097,2469.0,2468.7,0.8412676]
[1728854774469,4.05049,2468.9,2468.7,0.8412676]
[1728854774668,4.05049,2468.9,2468.8,1.74752113]
[1728854775116,5.54193097,2468.9,2468.8,1.74752113]
[1728854775414,4.05049,2468.9,2468.8,1.74752113]
[1728854775573,5.54172097,2469.0,2468.8,1.74752113]
[1728854775770,4.05042,2468.9,2468.7,0.8412676]
[1728854776001,4.05042,2468.9,2468.8,1.74756545]
[1728854776214,5.54186097,2468.9,2468.8,1.74756545]
[1728854777420,4.05042,2468.9,2468.8,1.87441815]
[1728854777575,4.05042,2468.9,2468.8,2.57351183]
[1728854777769,4.05042,2468.9,2468.8,1.87448565]
[1728854780408,5.54168097,2469.0,2468.8,1.87448565]
[1728854780707,5.54168097,2469.0,2468.7,0.8412676]
[1728854780873,5.54168097,2469.0,2468.8,1.87455521]
[1728854781073,5.54168097,2469.0,2468.7,0.8412676]
[1728854781277,5.54168097,2469.0,2468.8,2.17625555]
[1728854781581,5.54168097,2469.0,2468.9,0.12684991]
[1728854782181,5.54168097,2469.0,2468.9,0.82592975]
[1728854782382,5.54168097,2469.0,2468.9,0.12685229]
[1728854782582,5.54168097,2469.0,2468.9,0.82592895]
[1728854782977,5.54168097,2469.0,2468.9,0.88777046]
[1728854783215,5.54168097,2469.0,2468.9,0.88778983]
[1728854784323,5.54168097,2469.0,2468.9,0.1886938]
[1728854785027,5.54168097,2469.0,2468.9,0.06184151]
[1728854785212,5.54168097,2469.0,2468.9,0.12685266]
[1728854785568,5.54168097,2469.0,2468.9,0.49065104]
[1728854785687,5.54168097,2469.0,2468.9,1.18975304]
[1728854786387,5.54168097,2469.0,2468.9,0.49065104]
[1728854786692,5.54168097,2469.0,2468.9,1.1897462]
[1728854787193,5.54168097,2469.0,2468.9,0.49065104]
[1728854787520,5.54168097,2469.0,2468.9,0.49064934]
[1728854788224,5.54168097,2469.0,2468.9,1.18973317]
[1728854788384,5.54168097,2469.0,2468.9,0.49064934]
[1728854788585,5.54168097,2469.0,2468.9,0.18869417]
[1728854792402,6.59119707,2469.0,2468.9,0.18869417]
[1728854792611,7.34469707,2469.0,2468.9,0.18869417]
[1728854792832,7.34469707,2469.0,2468.9,0.06184151]
[1728854793068,4.05055,2468.8,2468.7,0.20297103]
[1728854793206,4.05055,2468.8,2468.7,1.9366146]
[1728854794137,4.05055,2468.8,2468.7,2.13958682]
[1728854794348,4.05055,2468.8,2468.7,1.9366146]
[1728854794510,5.54199097,2468.8,2468.7,1.9366146]
[1728854794842,5.54199097,2468.8,2468.7,0.88790784]
[1728854796156,5.54199097,2468.8,2468.7,1.93656871]
[1728854796448,5.54199097,2468.8,2468.7,0.88790784]
[1728854796834,5.54199097,2468.8,2468.7,0.88790542]
[1728854797222,5.54199097,2468.8,2468.7,0.88790356]
[1728854798229,5.54199097,2468.8,2468.7,0.18876982]
[1728854799248,5.54199097,2468.8,2468.7,0.88788759]
[1728854799448,5.54199097,2468.8,2468.7,0.18876982]
[1728854799663,6.58362976,2468.8,2468.7,0.18876982]
[1728854800837,6.58362976,2468.8,2468.7,0.06191035]
[1728854801056,6.58362976,2468.8,2468.7,0.12686472]
[1728854801267,6.58362976,2468.8,2468.7,0.1888592]
[1728854803262,5.54199097,2468.8,2468.7,0.1888592]
[1728854809182,5.54199097,2468.8,2468.7,0.06199448]
[1728854809387,5.54199097,2468.8,2468.7,0.18885886]
[1728854809585,5.54199097,2468.8,2468.7,0.12686546]
[1728854809889,5.54199097,2468.8,2468.7,0.06226982]
[1728854810046,5.54199097,2468.8,2468.7,0.12686599]
[1728854810246,5.54199097,2468.8,2468.7,0.18913581]
[1728854811955,5.54199097,2468.8,2468.7,0.06226982]
[1728854812267,4.05079,2468.7,2468.4,1.6470676]
[1728854812587,4.05079,2468.7,2468.5,2.07795008]
[1728854812780,4.05079,2468.7,2468.6,1.87496257]
[1728854813106,4.05079,2468.7,2468.6,1.93723239]
[1728854814883,4.05079,2468.7,2468.6,1.93725681]
[1728854815086,4.05079,2468.7,2468.6,1.93724546]
[1728854816357,4.05079,2468.7,2468.6,1.93714794]
[1728854816558,4.17079,2468.7,2468.6,1.93714794]
[1728854817258,4.17079,2468.7,2468.6,1.93714505]
[1728854820315,6.42723097,2468.7,2468.6,0.88833849]
[1728854820675,6.42723097,2468.7,2468.6,0.76147419]
[1728854820978,6.42723097,2468.7,2468.6,0.88834504]
[1728854821178,7.63120329,2468.7,2468.6,0.88834504]
[1728854823154,7.63120329,2468.7,2468.6,0.06226982]
[1728854823636,7.63120329,2468.7,2468.4,0.8412676]
[1728854823779,4.93579,2468.7,2468.6,0.06242284]
[1728854823984,6.42723097,2468.7,2468.4,0.8412676]
[1728854824195,4.93579,2468.7,2468.6,0.06242284]
[1728854824398,4.05119,2468.5,2468.3,0.8412676]
[1728854824598,4.05119,2468.5,2468.4,1.87531155]
[1728854825223,5.54263097,2468.5,2468.4,1.87531155]
[1728854825888,5.54263097,2468.5,2468.4,1.74843408]
[1728854826314,6.34873097,2468.5,2468.4,1.74843408]
[1728854827327,6.34873097,2468.5,2468.1,0.48300251]
[1728854827535,1.49144097,2468.4,2468.2,0.12687994]
[1728854827736,1.49144097,2468.4,2468.3,0.12687994]
[1728854827944,1.49144097,2468.4,2468.3,0.18939645]
[1728854828417,1.61144097,2468.4,2468.3,0.18939645]
[1728854830225,5.66264097,2468.4,2468.3,0.18939645]
[1728854831126,5.66264097,2468.4,2468.3,0.06251464]
[1728854831799,5.66264097,2468.4,2468.0,0.751]
[1728854832005,4.1712,2468.4,2468.3,0.05277636]
[1728854832204,4.1712,2468.4,2468.0,0.751]
[1728854832205,5.66264097,2468.4,2468.0,0.751]
[1728854832433,5.66264097,2468.4,2468.3,0.05277636]
[1728854832636,6.71462207,2468.4,2468.0,0.751]
[1728854832936,5.66264097,2468.4,2468.1,0.12688234]
[1728854833152,5.66264097,2468.4,2468.2,0.12688234]
[1728854833302,5.66264097,2468.4,2468.1,0.05277636]
[1728854833635,1.49144097,2468.3,2468.2,0.12688308]
[1728854834203,1.61144097,2468.3,2468.2,0.17965944]
[1728854835136,1.61144097,2468.3,2468.2,0.17965869]
[1728854836804,1.61144097,2468.3,2468.2,0.1796589]
[1728854837000,1.61144097,2468.3,2468.2,0.05277636]
[1728854837405,1.61144097,2468.3,2468.0,0.751]
[1728854837628,1.61144097,2468.3,2468.2,0.0530365]
[1728854837832,1.61144097,2468.3,2468.0,0.751]
[1728854838033,1.61144097,2468.3,2468.2,0.0530365]
[1728854838276,1.61144097,2468.3,2468.0,0.751]
[1728854838778,1.61144097,2468.3,2468.1,0.0530365]
[1728854839855,0.12,2468.3,2468.1,0.0530365]
[1728854840479,1.61144097,2468.3,2468.1,0.0530365]
[1728854842886,2.05770507,2468.2,2468.1,0.0530365]
[1728854843083,2.17770507,2468.2,2468.0,0.751]
[1728854843247,2.17770507,2468.2,2468.1,0.05096746]
[1728854843886,0.6862641,2468.2,2468.1,0.05096746]
[1728854844045,0.12,2468.2,2468.1,0.05096746]
[1728854844461,1.61144097,2468.2,2468.1,0.05096746]
[1728854844685,5.66297097,2468.2,2468.1,0.05096746]
[1728854844886,5.66297097,2468.2,2467.8,0.8248]
[1728854845288,5.66297097,2468.2,2467.9,0.05096746]
[1728854845868,10.47616097,2468.2,2467.9,0.05096746]
[1728854846054,11.52377707,2468.2,2467.9,0.05096746]
[1728854846454,7.47208707,2468.2,2467.9,0.05096746]
[1728854846654,11.52374707,2468.2,2467.9,0.05096746]
[1728854846891,1.49144097,2468.1,2467.9,0.05096746]
[1728854849094,5.54330097,2468.0,2467.9,0.05096746]
[1728854849686,5.54315097,2468.1,2467.9,0.05096746]
[1728854849894,4.05171,2468.1,2467.6,1.16614626]
[1728854850089,1.49144097,2468.0,2467.6,9.94219898]
[1728854850293,0.12,2468.2,2467.8,0.8124]
[1728854850455,1.61144097,2468.2,2467.8,4.86458]
[1728854850782,1.61144097,2468.2,2467.9,0.05127358]
[1728854851194,0.12,2468.2,2467.9,0.05127358]
[1728854851357,0.12,2468.2,2468.0,0.7763]
[1728854851989,0.12,2468.2,2468.1,0.05121235]
[1728854868591,4.17153,2468.2,2468.1,0.05121235]
[1728854868811,5.97881851,2468.2,2468.1,0.05121235]
[1728854869012,5.97881851,2468.2,2467.7,0.7637]
[1728854869212,5.00033,2468.2,2468.1,0.05141133]
[1728854869391,5.00033,2468.2,2467.7,0.7637]
[1728854869924,5.00033,2468.2,2467.8,0.05152614]
[1728854870088,5.00033,2468.2,2467.7,0.7637]
[1728854870288,5.00033,2468.2,2467.8,0.05152614]
[1728854870495,6.06169851,2468.2,2468.0,0.84790241]
[1728854870690,4.05181,2468.1,2468.0,0.84790241]
[1728854870890,5.54325097,2468.1,2468.0,2.60075052]
[1728854871300,5.54325097,2468.1,2467.8,1.05166396]
[1728854872292,5.54325097,2468.1,2468.0,0.84790241]
[1728854872633,5.54325097,2468.1,2468.0,2.59656]
[1728854872989,5.54325097,2468.1,2468.0,0.05157207]
[1728854873194,5.21935636,2468.1,2468.0,0.05157207]
[1728854873394,5.21935636,2468.1,2467.8,1.05166396]
[1728854873692,5.21935636,2468.1,2468.0,0.05157207]
[1728854873916,5.21935636,2468.1,2468.0,2.65247392]
[1728854874522,5.21935636,2468.1,2468.0,0.05157207]
[1728854875240,5.21935636,2468.1,2467.8,1.05166396]
[1728854875447,4.05181,2468.1,2468.0,0.05157207]
[1728854875593,5.00033,2468.2,2468.0,2.60232699]
[1728854875827,5.00033,2468.2,2468.1,1.7538862]
[1728854876342,5.00033,2468.2,2468.1,1.80545827]
[1728854876533,6.06169151,2468.2,2468.1,1.80545827]
[1728854877653,6.06169151,2468.2,2468.1,1.80589702]
[1728854878362,6.06169151,2468.2,2468.1,0.75330205]
[1728854879263,6.06169151,2468.2,2468.1,0.05157207]
[1728854879582,6.06169151,2468.2,2467.6,1.49144097]
[1728854879768,6.06169151,2468.2,2467.5,6.36091097]
[1728854879936,6.06169151,2468.2,2467.7,0.05157207]
[1728854880144,6.06169151,2468.2,2467.5,6.36091097]
[1728854880145,1.16750466,2468.1,2467.9,0.84861141]
[1728854880451,1.16750466,2468.1,2468.0,1.7542389]
[1728854880764,1.16750466,2468.1,2468.0,1.80425634]
[1728854881497,1.16750466,2468.1,2468.0,1.80390002]
[1728854882638,5.00033,2468.2,2468.0,1.80390002]
[1728854882859,5.00033,2468.2,2468.0,0.05001744]
[1728854883252,5.00033,2468.2,2467.8,0.84861141]
[1728854883458,5.00033,2468.2,2468.1,0.0501782]
[1728854883685,5.00033,2468.2,2467.8,0.84861141]
[1728854883987,5.00033,2468.2,2467.9,1.7536573]
[1728854884151,5.00033,2468.2,2468.0,0.75164112]
[1728854884347,5.00033,2468.2,2468.0,0.0501782]
[1728854884583,5.00033,2468.2,2467.8,0.84861141]
[1728854884784,5.00033,2468.2,2467.9,1.80374673]
[1728854885081,6.06169851,2468.2,2467.9,0.0501782]
[1728854887049,6.06169851,2468.2,2467.7,1.49144097]
[1728854887373,5.00033,2468.2,2467.7,1.49144097]
[1728854887576,0.12,2468.1,2467.8,2.65149815]
[1728854887776,0.12,2468.1,2467.9,1.75320748]
[1728854888081,0.12,2468.1,2467.8,0.84811247]
[1728854888287,0.19052413,2468.1,2468.0,2.34061917]
[1728854888484,0.19052413,2468.1,2468.0,4.04366615]
[1728854888694,0.19052413,2468.1,2468.0,4.09384435]
[1728854888892,0.12,2468.1,2468.0,4.09384435]
[1728854891106,0.12,2468.1,2468.0,3.04190924]
[1728854891297,0.12,2468.1,2468.0,2.34061917]
[1728854892285,0.12,2468.1,2468.0,4.09383632]
[1728854893528,0.12,2468.3,2468.0,4.71524924]
[1728854893684,0.12,2468.3,2468.1,0.70128686]
[1728854894007,0.12,2468.3,2468.0,2.96203209]
[1728854894008,0.12,2468.3,2468.2,0.05009397]
[1728854894205,0.12,2468.3,2468.2,1.54153494]
[1728854894385,0.12,2468.3,2468.2,2.19257447]
[1728854894587,0.12,2468.3,2468.2,1.54152728]
[1728854898221,0.12,2468.3,2468.2,1.77478001]
[1728854899565,0.12,2468.5,2468.2,1.77478001]
[1728854899863,0.12,2468.5,2468.2,1.54152728]
[1728854901820,0.12,2468.5,2468.2,0.05008631]
[1728854906464,0.12,2468.5,2468.4,2.27074097]